bitfinex/quotes_SOLUSD_20250531
["timestamp","ask_amount","ask_price","bid_price","bid_amount"]
[1748707604922,11.56191326,155.98,155.94,25.0623717]
[1748707605332,11.56191326,155.99,155.94,25.0623717]
[1748707605537,11.56191326,155.99,155.94,36.62428496]
[1748707606438,11.56191326,155.99,155.94,25.0623717]
[1748707606862,11.56191326,155.98,155.94,25.0623717]
[1748707608649,11.56191326,155.97,155.94,6.41272284]
[1748707608948,11.56191326,155.96,155.94,6.41272284]
[1748707610231,11.56191326,155.97,155.94,6.41272284]
[1748707613437,11.56191326,155.95,155.88,1.6636]
[1748707613641,11.56191326,155.93,155.89,58.76964886]
[1748707613824,11.56191326,155.93,155.89,91.18442851]
[1748707614150,11.56191326,155.93,155.89,25.06442851]
[1748707615344,17.97357019,155.97,155.89,25.06442851]
[1748707615345,11.56191326,155.94,155.89,36.62634177]
[1748707615855,0.28432314,155.96,155.89,36.62634177]
[1748707616058,11.56191326,155.93,155.89,36.62634177]
[1748707616446,11.56191326,155.93,155.89,25.06442851]
[1748707616763,11.56191326,155.91,155.89,6.41477965]
[1748707617338,11.56191326,155.9,155.86,1.32779376]
[1748707617536,0.28432314,155.93,155.86,1.32779376]
[1748707617537,11.56191326,155.89,155.86,1.32779376]
[1748707617941,11.56191326,155.88,155.86,1.32779376]
[1748707618129,11.56191326,155.88,155.85,25.06592563]
[1748707620354,6.4525,155.91,155.85,36.62783889]
[1748707620539,13.19491326,155.93,155.88,11.56191326]
[1748707620938,11.56191326,155.92,155.87,11.56191326]
[1748707621343,11.56191326,155.91,155.86,30.21156212]
[1748707621547,11.56191326,155.9,155.86,18.64964886]
[1748707622360,11.56191326,155.9,155.87,6.41560274]
[1748707622963,11.56191326,155.91,155.87,6.41560274]
[1748707625285,0.28432314,155.92,155.87,6.41560274]
[1748707625591,11.56191326,155.91,155.87,6.41560274]
[1748707626469,11.56191326,155.9,155.87,6.41560274]
[1748707626897,11.56191326,155.9,155.81,6.41807329]
[1748707626898,11.56191326,155.88,155.81,6.41807329]
[1748707627103,11.56191326,155.84,155.81,6.41807329]
[1748707627391,10.64,155.87,155.83,11.56191326]
[1748707627562,10.64,155.87,155.85,11.56191326]
[1748707627962,10.64,155.87,155.86,30.21156212]
[1748707628167,22.20191326,155.91,155.86,30.21156212]
[1748707628567,22.20191326,155.91,155.87,6.41560274]
[1748707629268,22.20191326,155.91,155.9,18.64964886]
[1748707629269,10.64,155.91,155.9,18.64964886]
[1748707629589,92.34,155.94,155.9,30.21156212]
[1748707629882,92.34,155.94,155.91,11.56191326]
[1748707630062,10.64,155.95,155.93,11.56191326]
[1748707630461,10.64,155.95,155.94,6.41272284]
[1748707630766,10.64,155.95,155.93,6.41306037]
[1748707630972,11.56191326,155.94,155.91,26.0]
[1748707631196,11.56191326,155.93,155.9,6.41436818]
[1748707631672,11.56191326,155.92,155.88,6.41519117]
[1748707632080,11.56191326,155.93,155.88,17.97710443]
[1748707632579,11.56191326,155.93,155.89,18.64964886]
[1748707632984,22.20191326,155.95,155.91,18.64964886]
[1748707634287,11.56191326,155.93,155.89,18.64964886]
[1748707634487,11.56191326,155.92,155.88,6.41519117]
[1748707634911,11.56191326,155.93,155.88,17.97710443]
[1748707635202,11.56191326,155.94,155.89,11.56191326]
[1748707635376,10.64,155.95,155.9,18.64964886]
[1748707635582,22.20191326,155.95,155.9,30.21156212]
[1748707636989,22.20191326,155.95,155.91,6.41395676]
[1748707637193,10.64,155.95,155.91,6.41395676]
[1748707637379,22.20191326,155.95,155.91,6.41395676]
[1748707637579,11.56191326,155.93,155.91,6.41395676]
[1748707638293,11.56191326,155.94,155.91,6.41395676]
[1748707638900,11.56191326,155.93,155.89,6.41477965]
[1748707639991,11.56191326,155.93,155.88,25.06484003]
[1748707640204,11.56191326,155.93,155.88,36.62675329]
[1748707640518,11.56191326,155.94,155.88,36.62675329]
[1748707641214,11.56191326,155.94,155.88,52.66473122]
[1748707642818,11.56191326,155.93,155.88,52.66473122]
[1748707643542,11.56191326,155.94,155.89,11.56191326]
[1748707644227,11.56191326,155.94,155.9,6.41436818]
[1748707645428,11.56191326,155.93,155.89,6.41477965]
[1748707648334,11.56191326,155.93,155.89,22.45172878]
[1748707649854,11.56191326,155.94,155.9,18.64964886]
[1748707650027,10.64,155.95,155.92,30.21156212]
[1748707650232,10.64,155.95,155.93,11.56191326]
[1748707651036,10.64,155.95,155.92,70.13156212]
[1748707651458,10.64,155.95,155.92,58.56964886]
[1748707651829,11.56191326,155.94,155.91,6.41395676]
[1748707652359,10.64,155.95,155.91,6.41395676]
[1748707652360,11.56191326,155.93,155.91,6.41395676]
[1748707653163,11.56191326,155.92,155.91,6.41395676]
[1748707653470,11.56191326,155.92,155.88,81.95696278]
[1748707653471,11.56191326,155.92,155.88,32.41485682]
[1748707653662,11.56191326,155.92,155.88,6.41485682]
[1748707654167,11.56191326,155.9,155.87,6.41560274]
[1748707658059,11.56191326,155.91,155.87,6.41560274]
[1748707658276,11.56191326,155.9,155.87,6.41560274]
[1748707658577,11.56191326,155.89,155.87,6.41560274]
[1748707658775,11.56191326,155.9,155.87,6.41560274]
[1748707659448,11.56191326,155.91,155.87,6.41560274]
[1748707661590,11.56191326,155.91,155.87,34.01652286]
[1748707662365,11.56191326,155.92,155.87,34.01652286]
[1748707663974,11.56191326,155.91,155.87,22.4546096]
[1748707664183,11.56191326,155.9,155.87,22.4546096]
[1748707665884,11.56191326,155.9,155.87,16.03900686]
[1748707671696,22.12191326,155.91,155.87,22.4546096]
[1748707674815,10.56,155.91,155.87,22.4546096]
[1748707675017,10.56,155.91,155.9,18.64964886]
[1748707675187,10.56,155.91,155.9,30.21156212]
[1748707675878,10.56,155.91,155.9,18.64964886]
[1748707676687,10.56,155.91,155.9,25.06401704]
[1748707680011,7.17534411,155.91,155.9,25.06401704]
[1748707680517,7.17534411,155.91,155.9,6.41436818]
[1748707681412,7.17534411,155.91,155.89,6.41477965]
[1748707685945,7.17534411,155.91,155.9,18.64964886]
[1748707688136,7.17534411,155.91,155.9,25.06401704]
[1748707692331,10.38,155.96,155.9,85.37489276]
[1748707692643,10.38,155.96,155.94,11.56191326]
[1748707692834,10.38,155.96,155.95,18.64964886]
[1748707693745,10.38,155.96,155.93,18.64964886]
[1748707693935,10.38,155.96,155.93,30.21156212]
[1748707694636,10.38,155.96,155.95,18.64964886]
[1748707696139,10.38,155.96,155.95,25.06196049]
[1748707697170,10.38,155.96,155.95,36.62387375]
[1748707698067,8.07750002,155.97,155.95,36.62387375]
[1748707698774,8.07750002,155.97,155.95,25.06196049]
[1748707698972,8.07750002,155.97,155.96,30.21156212]
[1748707700039,8.07750002,155.97,155.95,45.95231163]
[1748707703848,8.07750002,155.97,155.95,6.41231163]
[1748707704058,8.07750002,155.97,155.93,16.03263848]
[1748707704059,11.56191326,155.96,155.93,26.0]
[1748707704262,11.56191326,155.95,155.92,6.41314356]
[1748707705105,11.56191326,155.94,155.91,6.41389186]
[1748707705284,11.56191326,155.93,155.91,6.41389186]
[1748707706147,11.56191326,155.94,155.91,6.41389186]
[1748707708465,21.94191326,155.95,155.91,6.41389186]
[1748707708798,11.56191326,155.94,155.91,6.41389186]
[1748707711498,21.94191326,155.95,155.91,6.41389186]
[1748707712685,11.56191326,155.94,155.91,6.41389186]
[1748707714380,10.38,155.95,155.9,6.41436818]
[1748707714381,11.56191326,155.93,155.9,6.41436818]
[1748707714962,11.56191326,155.94,155.9,6.41436818]
[1748707719469,21.94191326,155.95,155.91,18.64964886]
[1748707719674,10.38,155.95,155.91,30.21156212]
[1748707720087,10.38,155.95,155.92,11.56191326]
[1748707720378,10.38,155.95,155.93,11.56191326]
[1748707720557,10.38,155.95,155.94,30.21156212]
[1748707720875,8.07750002,155.97,155.94,30.21156212]
[1748707721050,8.07750002,155.97,155.95,11.56191326]
[1748707721256,8.07750002,155.97,155.96,36.6234626]
[1748707721755,8.07750002,155.97,155.96,76.0834626]
[1748707725156,8.07750002,155.97,155.96,87.64537586]
[1748707726370,8.07750002,155.97,155.96,76.0834626]
[1748707726876,8.07750002,155.97,155.96,102.0634626]
[1748707730576,8.07750002,155.97,155.96,102.0434626]
[1748707731371,8.07750002,155.97,155.96,51.06154934]
[1748707731685,8.07750002,155.97,155.96,62.6234626]
[1748707731979,8.07750002,155.97,155.96,36.6234626]
[1748707734288,8.07750002,155.97,155.96,25.06154934]
[1748707734475,8.07750002,155.97,155.96,36.6234626]
[1748707735664,8.07750002,155.97,155.96,6.41190048]
[1748707736413,8.07750002,155.97,155.96,17.97381374]
[1748707737409,8.07750002,155.97,155.96,6.41190048]
[1748707737708,8.07750002,155.97,155.96,17.97381374]
[1748707738207,8.07750002,155.97,155.96,57.39381374]
[1748707741322,8.07750002,155.97,155.96,76.0434626]
[1748707742693,8.07750002,155.97,155.96,102.0434626]
[1748707745394,8.07750002,155.97,155.96,177.20537586]
[1748707745715,10.28,156.03,155.99,26.0]
[1748707745879,6.2937,156.06,156.03,18.64964886]
[1748707746082,6.2937,156.06,156.04,11.56191326]
[1748707746297,10.24,156.07,156.04,11.56191326]
[1748707746614,10.24,156.07,156.03,11.56191326]
[1748707746811,11.56191326,156.06,156.01,11.56191326]
[1748707746989,10.24,156.07,156.01,11.56191326]
[1748707746990,11.56191326,156.05,156.01,18.64964886]
[1748707747187,11.56191326,156.06,156.01,30.21156212]
[1748707747505,11.56191326,156.06,156.02,6.40943468]
[1748707749588,11.56191326,156.06,156.02,17.97134794]
[1748707749897,21.80191326,156.07,156.02,17.97134794]
[1748707751728,11.56191326,156.06,156.02,6.40943468]
[1748707765755,11.56191326,156.06,156.02,17.97134794]
[1748707765954,7.39167167,156.06,156.02,13.80110635]
[1748707766538,7.39167167,156.06,156.02,6.40943468]
[1748707766815,7.39167167,156.03,156.02,6.40943468]
[1748707767083,7.39167167,156.03,155.99,26.0]
[1748707767961,10.24,156.03,155.99,26.0]
[1748707768272,10.24,156.03,156.0,6.41025641]
[1748707771174,10.24,156.03,156.0,33.9907522]
[1748707771556,10.24,156.03,156.02,11.55485477]
[1748707772057,10.24,156.07,156.03,18.64964886]
[1748707772388,10.24,156.07,156.05,6.40820249]
[1748707776273,10.24,156.07,156.04,6.40861317]
[1748707779382,10.24,156.07,156.04,33.98500088]
[1748707780186,10.24,156.07,156.05,18.64964886]
[1748707780482,10.24,156.07,156.06,6.40779187]
[1748707780677,10.24,156.07,156.06,17.96264664]
[1748707780989,10.24,156.07,156.06,6.40779187]
[1748707782575,10.24,156.07,156.05,6.40820249]
[1748707797401,10.24,156.07,156.05,13.79783077]
[1748707798402,10.24,156.09,156.05,6.40820249]
[1748707801077,10.24,156.09,156.05,13.79783077]
[1748707801794,100.3273,156.16,156.08,44.64964886]
[1748707801986,110.5673,156.16,156.08,83.98964886]
[1748707802186,117.95692828,156.16,156.09,7.38962828]
[1748707802428,110.5673,156.16,156.08,83.98964886]
[1748707802615,7.67395142,156.14,156.09,13.79618859]
[1748707802912,7.67395142,156.14,156.09,6.40656031]
[1748707803091,7.38962828,156.13,156.09,45.74656031]
[1748707803414,7.67395142,156.14,156.09,45.74656031]
[1748707803788,7.67395142,156.14,156.09,53.13618859]
[1748707804213,0.28432314,156.14,156.09,53.13618859]
[1748707805089,7.67395142,156.14,156.09,53.13618859]
[1748707805508,7.67395142,156.14,156.09,69.15258938]
[1748707805811,0.28432314,156.14,156.09,69.15258938]
[1748707805985,117.95692828,156.16,156.1,26.03927714]
[1748707806190,117.95692828,156.16,156.11,7.38962828]
[1748707806887,25.67692828,156.16,156.12,6.40532923]
[1748707808424,18.2873,156.16,156.12,13.79495751]
[1748707809422,9.69672392,156.21,156.16,18.64964886]
[1748707809593,5.16858948,156.28,156.16,18.64964886]
[1748707809594,7.38962828,156.25,156.17,39.68]
[1748707809810,7.38962828,156.24,156.18,7.38962828]
[1748707810019,7.38962828,156.23,156.18,7.38962828]
[1748707810219,10.22,156.25,156.2,7.38962828]
[1748707810385,10.22,156.25,156.22,7.38962828]
[1748707811010,10.22,156.25,156.21,47.06962828]
[1748707811490,10.22,156.25,156.22,6.40122903]
[1748707811909,10.22,156.25,156.22,17.92006446]
[1748707812082,7.6451,156.28,156.24,11.51883543]
[1748707812694,7.6451,156.28,156.22,48.40430161]
[1748707812905,7.6451,156.28,156.23,11.51883543]
[1748707813088,7.6451,156.28,156.24,11.51883543]
[1748707813794,7.6451,156.28,156.25,6.4]
[1748707815198,11.0883707,156.29,156.26,11.51883543]
[1748707815703,11.51883543,156.27,156.21,51.17883543]
[1748707816294,11.51883543,156.27,156.22,11.51883543]
[1748707817214,11.80315857,156.28,156.24,6.40040962]
[1748707818035,6.622,156.27,156.22,11.51883543]
[1748707819015,18.14083543,156.27,156.21,57.64047424]
[1748707819829,18.14083543,156.27,156.22,11.51883543]
[1748707820334,6.622,156.27,156.22,11.51883543]
[1748707820503,6.622,156.27,156.23,11.51883543]
[1748707820918,11.51883543,156.28,156.23,11.51883543]
[1748707821130,11.0883707,156.29,156.25,11.51883543]
[1748707821510,11.0883707,156.29,156.26,6.39959042]
[1748707821704,11.0883707,156.29,156.26,17.91842585]
[1748707823204,11.0883707,156.29,156.28,6.39877143]
[1748707825412,11.0883707,156.29,156.27,6.3991809]
[1748707826234,11.0883707,156.29,156.26,6.39951035]
[1748707826441,22.60720613,156.29,156.25,46.09992066]
[1748707827102,11.0883707,156.29,156.25,57.61875609]
[1748707827918,11.0883707,156.29,156.25,17.91875609]
[1748707828515,11.0883707,156.29,156.26,11.51883543]
[1748707829115,11.51883543,156.28,156.2,16.00426874]
[1748707829326,11.51883543,156.27,156.22,11.51883543]
[1748707829618,11.51883543,156.27,156.21,57.56047424]
[1748707829825,11.51883543,156.27,156.22,11.51883543]
[1748707830020,17.48680797,156.29,156.23,11.51883543]
[1748707830021,11.51883543,156.28,156.23,11.51883543]
[1748707831109,11.51883543,156.28,156.24,6.40040962]
[1748707831307,11.80315857,156.27,156.22,11.51883543]
[1748707831512,11.51883543,156.26,156.21,39.62]
[1748707831721,11.51883543,156.26,156.22,6.401086]
[1748707831932,11.0883707,156.29,156.22,17.91992143]
[1748707832105,11.51883543,156.27,156.22,6.401086]
[1748707832536,11.51883543,156.25,156.21,6.40157607]
[1748707835238,11.51883543,156.26,156.21,17.9204115]
[1748707835528,6.68319762,156.28,156.22,11.51883543]
[1748707835529,11.51883543,156.27,156.22,11.51883543]
[1748707836113,11.0883707,156.29,156.22,11.51883543]
[1748707836323,11.51883543,156.28,156.23,11.51883543]
[1748707836524,11.51883543,156.28,156.24,6.40040962]
[1748707836829,11.0883707,156.29,156.25,11.51883543]
[1748707838645,11.0883707,156.29,156.26,6.39959042]
[1748707839532,11.0883707,156.29,156.26,17.91842585]
[1748707840038,11.0883707,156.29,156.27,11.51883543]
[1748707840535,11.0883707,156.29,156.28,6.39877143]
[1748707841622,11.0883707,156.29,156.27,6.3991809]
[1748707843933,11.0883707,156.29,156.26,6.39947643]
[1748707844153,22.60720613,156.29,156.25,6.3998683]
[1748707844438,11.0883707,156.29,156.25,6.3998683]
[1748707844635,11.0883707,156.29,156.25,17.91870373]
[1748707844845,11.0883707,156.29,156.26,11.51883543]
[1748707845435,11.0883707,156.29,156.25,17.91870373]
[1748707845634,22.60720613,156.29,156.25,6.3998683]
[1748707846052,22.60720613,156.29,156.25,17.91870373]
[1748707846053,11.0883707,156.29,156.25,17.91870373]
[1748707847948,11.51883543,156.27,156.22,11.51883543]
[1748707848153,11.660997,156.26,156.22,6.40122903]
[1748707848457,11.51883543,156.25,156.2,51.03883543]
[1748707848695,11.51883543,156.25,156.2,11.51883543]
[1748707848839,11.51883543,156.25,156.21,6.40163881]
[1748707851034,0.14216157,156.25,156.21,11.51883543]
[1748707851945,0.14216157,156.25,156.22,2.38004731]
[1748707852143,0.14216157,156.26,156.22,11.51883543]
[1748707852335,11.51883543,156.27,156.22,11.51883543]
[1748707852949,11.51883543,156.27,156.23,6.4008193]
[1748707854159,11.51883543,156.27,156.24,2.39005046]
[1748707854362,11.51883543,156.27,156.23,6.4008193]
[1748707854646,11.51883543,156.27,156.24,2.3900314]
[1748707854868,11.51883543,156.27,156.23,6.4008193]
[1748707855197,11.51883543,156.27,156.24,2.39008593]
[1748707855358,0.28432314,156.28,156.23,6.4008193]
[1748707855552,11.80315857,156.28,156.24,2.39030259]
[1748707855748,11.80315857,156.28,156.23,17.91965473]
[1748707856081,11.51883543,156.27,156.24,2.39043711]
[1748707856379,11.51883543,156.27,156.25,2.39028112]
[1748707856677,11.51883543,156.27,156.22,11.51883543]
[1748707856847,11.51883543,156.27,156.23,2.38994767]
[1748707857046,11.51883543,156.27,156.24,2.38994767]
[1748707857272,11.51883543,156.27,156.22,11.51883543]
[1748707857273,11.51883543,156.27,156.25,2.38994767]
[1748707857456,11.51883543,156.27,156.22,11.51883543]
[1748707857663,11.51883543,156.27,156.23,2.38954884]
[1748707857979,11.51883543,156.27,156.24,8.78981155]
[1748707858281,11.51883543,156.27,156.25,2.38955152]
[1748707858452,11.51883543,156.27,156.24,6.40026271]
[1748707860377,11.51883543,156.27,156.25,2.38986607]
[1748707860675,11.51883543,156.27,156.24,6.40026271]
[1748707861683,11.51883543,156.27,156.25,8.7898227]
[1748707861865,11.51883543,156.27,156.25,6.39992047]
[1748707862053,11.51883543,156.27,156.26,2.38953085]
[1748707862260,11.660997,156.27,156.26,2.38953085]
[1748707862555,11.660997,156.27,156.25,6.39992047]
[1748707863262,11.660997,156.28,156.25,6.39992047]
[1748707863457,0.14216157,156.28,156.25,6.39992047]
[1748707863659,11.0883707,156.29,156.26,2.38941483]
[1748707863864,11.0883707,156.29,156.27,2.38941483]
[1748707864059,11.0883707,156.29,156.25,11.51883543]
[1748707864359,11.0883707,156.29,156.26,2.38878481]
[1748707864568,11.0883707,156.29,156.27,2.38877626]
[1748707864763,11.0883707,156.29,156.25,11.51883543]
[1748707864955,11.0883707,156.29,156.26,2.38878978]
[1748707865165,11.0883707,156.29,156.27,2.38878978]
[1748707865365,11.0883707,156.29,156.25,11.51883543]
[1748707865707,11.0883707,156.29,156.27,6.3991809]
[1748707865856,11.0883707,156.29,156.28,2.38873467]
[1748707866257,11.0883707,156.29,156.28,2.3882465]
[1748707867264,11.0883707,156.29,156.28,2.38771067]
[1748707867664,11.0883707,156.29,156.28,8.7864821]
[1748707868158,11.0883707,156.29,156.28,8.78658568]
[1748707869182,0.8683707,156.29,156.28,20.30542111]
[1748707870066,0.8683707,156.29,156.28,20.30486812]
[1748707870582,0.8683707,156.29,156.28,20.30482785]
[1748707871383,0.8683707,156.29,156.28,8.78599242]
[1748707872786,0.8683707,156.29,156.28,8.78614338]
[1748707874375,0.8683707,156.29,156.28,8.78624066]
[1748707875690,0.8683707,156.29,156.28,8.7865068]
[1748707876070,0.8683707,156.29,156.28,6.39877143]
[1748707876272,0.8683707,156.29,156.28,8.78648362]
[1748707877169,0.8683707,156.29,156.28,6.39877143]
[1748707877472,0.8683707,156.29,156.28,8.78723759]
[1748707877677,0.8683707,156.29,156.28,8.7872438]
[1748707878479,0.8683707,156.29,156.28,8.78746367]
[1748707879391,0.8683707,156.29,156.27,6.39914294]
[1748707879602,0.8683707,156.29,156.28,2.38906078]
[1748707879797,0.14216157,156.28,156.25,6.39983034]
[1748707880112,1.01053227,156.29,156.26,8.78939646]
[1748707880277,0.8683707,156.29,156.26,6.39925998]
[1748707880595,0.8683707,156.29,156.26,17.91809541]
[1748707880895,0.8683707,156.29,156.27,2.38961171]
[1748707881188,0.8683707,156.29,156.26,17.91809541]
[1748707881393,0.8683707,156.29,156.27,2.38984466]
[1748707881574,0.8683707,156.29,156.28,2.38984466]
[1748707882579,0.8683707,156.29,156.28,8.7879086]
[1748707882891,0.8683707,156.29,156.28,6.39877143]
[1748707883097,0.8683707,156.29,156.28,8.78730503]
[1748707883599,0.8683707,156.29,156.28,8.78730594]
[1748707884093,0.8683707,156.29,156.28,8.78717548]
[1748707884396,0.8683707,156.29,156.28,8.78705716]
[1748707885602,0.8683707,156.29,156.28,8.78697446]
[1748707885898,0.8683707,156.29,156.28,8.78697138]
[1748707886977,0.8683707,156.29,156.28,2.38778836]
[1748707887375,0.8683707,156.29,156.24,6.40040962]
[1748707887574,11.51883543,156.28,156.25,2.38713925]
[1748707887895,21.77883543,156.28,156.26,2.38713925]
[1748707888086,10.26,156.28,156.24,6.40040962]
[1748707888288,10.26,156.28,156.25,2.38852646]
[1748707888602,10.26,156.28,156.26,2.38852646]
[1748707888789,10.26,156.28,156.24,6.40040962]
[1748707888989,10.26,156.28,156.25,2.38865139]
[1748707889183,10.26,156.28,156.26,2.38865139]
[1748707889389,21.77883543,156.28,156.24,6.40040962]
[1748707889674,0.14216157,156.27,156.25,2.38864393]
[1748707889892,0.14216157,156.27,156.26,2.38864393]
[1748707890399,0.14216157,156.27,156.23,6.40075138]
[1748707890599,0.14216157,156.27,156.24,2.38895916]
[1748707890788,0.14216157,156.27,156.25,2.38895916]
[1748707890970,0.14216157,156.27,156.26,2.38895916]
[1748707891396,0.14216157,156.27,156.26,2.38896565]
[1748707891592,0.14216157,156.27,156.24,6.40037585]
[1748707891800,0.14216157,156.27,156.25,2.38879782]
[1748707891994,11.660997,156.27,156.26,2.38879782]
[1748707893197,11.660997,156.27,156.26,2.3888436]
[1748707893398,11.660997,156.27,156.22,17.92006446]
[1748707893727,11.660997,156.27,156.23,2.3889985]
[1748707893905,11.660997,156.27,156.24,2.3889985]
[1748707894103,11.660997,156.27,156.25,2.3892418]
[1748707894400,11.660997,156.27,156.23,6.40050704]
[1748707894705,11.660997,156.27,156.24,2.38938971]
[1748707894706,18.06024427,156.27,156.24,2.38938971]
[1748707895007,11.660997,156.26,156.25,2.38938971]
[1748707895202,11.660997,156.26,156.23,8.79006629]
[1748707895391,11.660997,156.26,156.24,2.38938971]
[1748707895584,11.660997,156.26,156.25,2.38938971]
[1748707895897,11.660997,156.26,156.23,2.39012121]
[1748707896207,11.660997,156.26,156.24,2.39010021]
[1748707896405,11.660997,156.26,156.25,2.39010021]
[1748707896905,11.660997,156.26,156.21,17.92047424]
[1748707897199,11.660997,156.26,156.22,2.3898067]
[1748707897498,11.660997,156.26,156.23,2.3898067]
[1748707897706,11.660997,156.26,156.21,17.92047424]
[1748707897707,11.660997,156.26,156.24,2.3898067]
[1748707897889,0.14216157,156.26,156.25,2.3898067]
[1748707898279,0.14216157,156.26,156.22,11.51883543]
[1748707898479,0.14216157,156.26,156.23,2.39033677]
[1748707898706,0.14216157,156.26,156.24,2.39033677]
[1748707898902,0.14216157,156.26,156.25,2.39033677]
[1748707899105,0.14216157,156.27,156.25,2.39033677]
[1748707899418,11.660997,156.27,156.24,6.40032308]
[1748707899580,11.660997,156.27,156.25,2.39029276]
[1748707899883,11.660997,156.27,156.24,6.40032308]
[1748707900088,11.660997,156.27,156.25,2.39027791]
[1748707900319,11.660997,156.27,156.23,6.4008193]
[1748707900598,11.660997,156.27,156.24,2.39057519]
[1748707900775,11.660997,156.27,156.23,6.4008193]
[1748707900776,11.660997,156.27,156.25,2.39057519]
[1748707900980,11.660997,156.27,156.23,6.4008193]
[1748707901181,0.14216157,156.27,156.24,2.39062516]
[1748707901487,11.660997,156.27,156.25,2.39062516]
[1748707901694,11.660997,156.27,156.23,6.4008193]
[1748707902009,11.660997,156.27,156.24,2.39066116]
[1748707902311,11.660997,156.27,156.24,6.40010976]
[1748707902515,11.660997,156.27,156.25,2.39073296]
[1748707902699,11.660997,156.27,156.24,6.40010976]
[1748707902881,11.660997,156.27,156.25,2.39064824]
[1748707903182,11.660997,156.27,156.24,6.40010976]
[1748707903381,11.660997,156.27,156.25,2.39112473]
[1748707903581,11.660997,156.27,156.24,6.40010976]
[1748707903799,11.660997,156.27,156.25,2.39121852]
[1748707904109,11.660997,156.27,156.24,6.40010976]
[1748707904315,11.660997,156.27,156.25,8.79118177]
[1748707904522,11.660997,156.27,156.25,6.3997134]
[1748707904723,10.26,156.28,156.25,6.3997134]
[1748707904879,10.26,156.28,156.26,2.39059309]
[1748707905083,10.26,156.28,156.27,2.39059309]
[1748707905518,10.26,156.28,156.27,2.39011929]
[1748707905687,10.26,156.28,156.27,2.39009269]
[1748707906111,10.26,156.28,156.27,8.78927359]
[1748707906693,10.26,156.28,156.27,6.3991809]
[1748707906892,10.26,156.28,156.27,8.78963455]
[1748707907591,10.26,156.28,156.27,2.3902748]
[1748707909412,10.26,156.28,156.27,2.3903223]
[1748707909589,10.26,156.28,156.27,8.7895032]
[1748707911903,10.26,156.28,156.27,8.7889171]
[1748707912105,10.26,156.28,156.27,2.38958234]
[1748707914219,10.26,156.28,156.27,6.3991809]
[1748707914399,10.26,156.28,156.27,8.78902768]
[1748707914716,10.26,156.28,156.27,6.3991809]
[1748707914892,10.26,156.28,156.27,8.789255]
[1748707917001,10.26,156.28,156.27,8.78940322]
[1748707917525,10.26,156.28,156.27,8.78931702]
[1748707919295,10.26,156.28,156.27,8.78950282]
[1748707919509,10.26,156.28,156.27,8.78958576]
[1748707920729,10.40216157,156.28,156.27,2.39040486]
[1748707920924,17.77169264,156.28,156.27,2.39040486]
[1748707921219,17.77169264,156.28,156.27,2.39075171]
[1748707921923,21.91958916,156.28,156.26,6.39955616]
[1748707922728,11.65958916,156.27,156.21,6.40163881]
[1748707922911,11.65958916,156.27,156.22,2.3914631]
[1748707923117,11.65958916,156.27,156.23,2.3914631]
[1748707923422,11.65958916,156.27,156.21,33.92316344]
[1748707923618,11.65958916,156.27,156.22,2.39168662]
[1748707924147,11.65958916,156.27,156.21,33.92316344]
[1748707924430,11.80175073,156.27,156.23,2.39175419]
[1748707924632,0.28432314,156.27,156.23,2.39175419]
[1748707924926,11.80175073,156.27,156.22,11.51742759]
[1748707926126,11.80175073,156.27,156.23,2.39439173]
[1748707926301,11.80175073,156.27,156.24,8.79480135]
[1748707926612,11.80175073,156.27,156.25,2.39439173]
[1748707926811,11.80175073,156.27,156.26,2.39439173]
[1748707927036,11.80175073,156.27,156.24,6.40040962]
[1748707927197,11.80175073,156.27,156.25,2.39445218]
[1748707927401,11.80175073,156.27,156.24,6.40040962]
[1748707927620,11.80175073,156.27,156.25,8.79442774]
[1748707927840,11.80175073,156.27,156.26,2.39444869]
[1748707928453,11.80175073,156.27,156.26,2.39447615]
[1748707929227,11.80175073,156.27,156.26,2.39452764]
[1748707930160,11.80175073,156.27,156.26,2.39461411]
[1748707930667,11.80175073,156.27,156.26,2.39461054]
[1748707931736,11.80175073,156.27,156.26,2.39475942]
[1748707932636,11.80175073,156.27,156.26,2.39478455]
[1748707932839,11.80175073,156.27,156.26,2.39472812]
[1748707933250,11.80175073,156.27,156.24,6.40023394]
[1748707933454,11.80175073,156.27,156.25,2.39472874]
[1748707933765,11.80175073,156.27,156.26,2.39472874]
[1748707935158,11.80175073,156.27,156.26,2.39465862]
[1748707935942,11.80175073,156.27,156.26,2.39469084]
[1748707936351,11.80175073,156.27,156.26,2.39463611]
[1748707937131,11.80175073,156.27,156.24,6.40023394]
[1748707937341,11.80175073,156.27,156.25,2.39459484]
[1748707937631,11.80175073,156.27,156.24,6.40023394]
[1748707937839,11.80175073,156.27,156.25,2.39457127]
[1748707938046,11.80175073,156.27,156.24,6.40023394]
[1748707938247,11.80175073,156.27,156.25,8.79454356]
[1748707938451,11.80175073,156.27,156.25,6.3999722]